bitfinex-derivatives/quotes_SOLF0:USTF0_20250125
["timestamp","ask_amount","ask_price","bid_price","bid_amount"]
[1737822288441,3.919,255.21,255.14,0.02896157]
[1737822288640,0.02500461,255.22,255.14,0.02896157]
[1737822290046,3.9195,255.17,255.14,0.02896157]
[1737822290344,0.02500461,255.22,255.14,0.02896157]
[1737822291844,3.9193,255.19,255.14,0.02896157]
[1737822292040,0.02500461,255.22,255.14,0.02896157]
[1737822293846,0.02500461,255.22,255.15,3.9197]
[1737822294147,0.02500461,255.22,255.14,0.02896157]
[1737822295246,3.9197,255.16,255.14,0.02896157]
[1737822296847,1.3037,255.21,255.14,0.02896157]
[1737822297048,0.02500461,255.22,255.14,0.02896157]
[1737822297347,0.02500461,255.22,255.2,3.919]
[1737822297546,3.9174,255.31,255.15,15.33012461]
[1737822297746,1.3037,255.35,255.15,15.33012461]
[1737822298048,3.919,255.21,255.14,2.94]
[1737822298349,15.33012461,255.28,255.15,3.9197]
[1737822298549,0.02731175,255.17,255.12,0.027423]
[1737822298744,3.9191,255.2,255.07,20.15642365]
[1737822298946,0.02697027,255.17,255.12,0.02532688]
[1737822299140,15.33012461,255.23,255.07,4.82629904]
[1737822299346,0.02749342,255.17,255.12,0.02701966]
[1737822299549,15.33012461,255.27,255.05,8.56134065]
[1737822299850,0.02688742,255.17,255.12,0.02684151]
[1737822300652,0.02688742,255.17,255.13,3.9201]
[1737822300951,0.02688742,255.17,255.12,0.02684151]
[1737822301256,3.9197,255.16,255.12,0.02684151]
[1737822301552,0.02688742,255.17,255.12,0.02684151]
[1737822302353,3.92,255.14,255.12,0.02684151]
[1737822303158,3.9198,255.16,255.12,0.02684151]
[1737822303355,0.02688742,255.17,255.12,0.02684151]
[1737822303755,0.02688742,255.17,255.14,3.9199]
[1737822303953,0.02688742,255.17,255.12,0.02684151]
[1737822307062,15.33012461,255.13,255.0,13.42428124]
[1737822307262,15.33012461,255.09,255.0,4.78440039]
[1737822307555,3.9218,255.02,255.0,4.78440039]
[1737822307759,15.33012461,255.05,254.91,8.63988085]
[1737822307958,15.33012461,255.09,254.91,8.63988085]
[1737822308153,0.0251915,255.04,254.99,0.02491262]
[1737822308859,15.33012461,255.0,254.79,1.78744704]
[1737822309061,15.33012461,254.93,254.78,4.79993381]
[1737822309256,15.33012461,254.93,254.79,37.949729]
[1737822309462,15.33012461,254.93,254.79,3.9252]
[1737822309663,15.33012461,254.93,254.79,24.07287211]
[1737822309860,0.02556823,254.89,254.79,24.07287211]
[1737822310060,15.35569284,254.89,254.79,20.14767211]
[1737822310360,0.02556823,254.89,254.75,15.33012461]
[1737822310555,0.02556823,254.89,254.79,4.8420395]
[1737822310756,0.02556823,254.89,254.8,37.57412088]
[1737822311063,0.02556823,254.89,254.8,19.7796665]
[1737822311465,15.35569284,254.89,254.8,19.7796665]
[1737822311764,3.9244,254.85,254.76,3.9257]
[1737822311965,3.9244,254.85,254.73,7.4990395]
[1737822312166,0.02866756,254.83,254.73,2.657]
[1737822312965,0.02866756,254.83,254.74,37.53166123]
[1737822313166,0.02866756,254.83,254.75,37.53166123]
[1737822313367,0.02866756,254.83,254.76,28.1414196]
[1737822313566,15.33012461,254.97,254.77,37.52343098]
[1737822313766,15.33012461,254.97,254.79,15.33012461]
[1737822313969,15.33012461,254.97,254.8,41.34183896]
[1737822314164,15.33012461,254.97,254.81,32.92940973]
[1737822314372,15.33012461,254.97,254.82,28.10252669]
[1737822314666,0.03013833,254.92,254.87,0.02689207]
[1737822316768,3.9236,254.91,254.87,0.02689207]
[1737822317571,0.03013833,254.92,254.87,0.02689207]
[1737822318568,15.33012461,255.05,254.87,0.02689207]
[1737822318973,15.33012461,255.01,254.87,0.02689207]
[1737822319468,19.25212461,255.01,254.91,3.9234]
[1737822319675,3.922,255.01,254.83,15.33012461]
[1737822319866,0.02618827,254.99,254.93,0.02917307]
[1737822320066,0.02618827,254.99,254.96,3.9227]
[1737822320269,0.02618827,254.99,254.93,0.02917307]
[1737822323471,3.9229,254.95,254.93,0.02917307]
[1737822324373,3.9235,254.91,254.76,15.33012461]
[1737822324679,15.33012461,254.93,254.76,3.02]
[1737822325375,15.33012461,254.93,254.75,2.4989]
[1737822325675,0.02878906,254.87,254.82,0.02658529]
[1737822329576,3.9243,254.86,254.82,0.02658529]
[1737822329775,0.02878906,254.87,254.68,17.91322461]
[1737822329973,1.3275,254.86,254.68,2.5831]
[1737822330177,1.3275,254.86,254.68,1.2938]
[1737822330475,15.33012461,254.81,254.6,15.33012461]
[1737822330870,1.3077,254.8,254.6,15.33012461]
[1737822331070,0.02912108,254.74,254.6,15.33012461]
[1737822331274,0.02912108,254.74,254.72,3.9263]
[1737822331473,0.02912108,254.74,254.64,15.33012461]
[1737822331878,0.02912108,254.74,254.6,15.33012461]
[1737822332683,0.02912108,254.74,254.64,15.33012461]
[1737822332983,0.02912108,254.74,254.69,3.9268]
[1737822333184,0.02912108,254.74,254.64,15.33012461]
[1737822333385,0.02912108,254.74,254.67,3.9272]
[1737822333580,0.02912108,254.74,254.64,15.33012461]
[1737822333780,0.02912108,254.74,254.6,15.33012461]
[1737822334084,16.58422461,254.85,254.66,3.9273]
[1737822334384,15.33012461,254.81,254.6,15.33012461]
[1737822334585,15.33012461,254.77,254.57,5.5831]
[1737822334781,15.33012461,254.77,254.57,2.5831]
[1737822334976,0.03007537,254.7,254.67,3.9272]
[1737822335182,0.03007537,254.7,254.57,5.5831]
[1737822336084,0.03007537,254.7,254.63,3.9278]
[1737822336385,0.03007537,254.7,254.57,5.5631]
[1737822336784,3.95677537,254.7,254.62,3.9279]
[1737822337080,0.03007537,254.7,254.57,2.5831]
[1737822337283,0.03007537,254.7,254.62,3.9279]
[1737822337486,15.33012461,254.77,254.55,2.6051]
[1737822337787,0.02976281,254.69,254.61,3.9281]
[1737822337986,0.02976281,254.69,254.58,15.33012461]
[1737822338282,15.35988742,254.69,254.46,18.44282551]
[1737822338581,3.9286,254.58,254.5,3.9297]
[1737822339287,3.9294,254.53,254.42,3.931]
[1737822339483,3.9294,254.53,254.36,7.43198304]
[1737822339684,0.0261411,254.5,254.37,8.21919062]
[1737822339884,0.0261411,254.5,254.38,3.49136604]
[1737822340189,0.0261411,254.5,254.37,11.14376965]
[1737822340387,3.9302,254.48,254.38,3.9316]
[1737822340889,3.9303,254.47,254.37,15.07546965]
[1737822341079,1.234,254.51,254.33,133.2680084]
[1737822341285,0.02594174,254.45,254.34,3.48849778]
[1737822341481,0.02594174,254.45,254.35,10.76181137]
[1737822341682,0.02594174,254.45,254.36,6.4843471]
[1737822341985,0.02594174,254.45,254.43,3.9308]
[1737822342490,15.33012461,254.6,254.38,15.33012461]
[1737822342789,15.33012461,254.6,254.39,13.75775237]
[1737822342987,2.6516,254.66,254.42,15.33012461]
[1737822343289,2.6516,254.66,254.46,15.33012461]
[1737822343490,0.02483145,254.57,254.51,0.02551868]
[1737822344390,3.95363145,254.57,254.51,0.02551868]
[1737822344588,0.02483145,254.57,254.51,0.02551868]
[1737822345189,3.9289,254.56,254.51,0.02551868]
[1737822346086,0.02483145,254.57,254.51,0.02551868]
[1737822347492,3.9295,254.52,254.45,3.9305]
[1737822348196,3.9295,254.52,254.37,2.6321]
[1737822348386,3.9295,254.52,254.38,13.7459818]
[1737822348585,0.02624831,254.47,254.39,13.74861854]
[1737822348895,15.33012461,254.58,254.4,3.47642826]
[1737822349187,0.02753683,254.46,254.45,3.9306]
[1737822349393,3.9292,254.54,254.41,11.09841084]
[1737822349592,0.02926393,254.48,254.42,3.47854058]
[1737822349793,0.02926393,254.48,254.43,3.47854058]
[1737822349997,0.02926393,254.48,254.43,4.26861955]
[1737822350197,0.02926393,254.48,254.47,3.9302]
[1737822350589,3.9285,254.59,254.52,3.9294]
[1737822350893,15.33012461,254.62,254.42,15.33012461]
[1737822351093,15.33012461,254.62,254.43,28.23924269]
[1737822351288,3.9283,254.6,254.49,3.9299]
[1737822351495,15.33012461,254.62,254.5,3.47749311]
[1737822351793,3.95392865,254.59,254.53,0.02913363]
[1737822351993,0.02552865,254.59,254.53,0.02913363]
[1737822353095,3.95402865,254.59,254.53,0.02913363]
[1737822353296,0.02552865,254.59,254.53,0.02913363]
[1737822353689,0.02552865,254.59,254.57,3.9287]
[1737822354797,0.02552865,254.59,254.56,3.9288]
[1737822355294,0.02552865,254.59,254.53,0.02913363]
[1737822356499,0.02552865,254.59,254.57,3.9287]
[1737822356903,0.02552865,254.59,254.53,0.02913363]
[1737822357203,0.02552865,254.59,254.57,3.9287]
[1737822358907,0.02552865,254.59,254.53,0.02913363]
[1737822361007,0.02552865,254.59,254.56,3.9289]
[1737822361204,0.02552865,254.59,254.53,0.02913363]
[1737822362204,0.02552865,254.59,254.54,3.9291]
[1737822362405,0.02552865,254.59,254.53,0.02913363]
[1737822362708,0.02552865,254.59,254.58,3.9286]
[1737822362903,2.6668,254.75,254.53,0.02913363]
[1737822363100,2.6668,254.75,254.54,15.33012461]
[1737822363305,1.3374,254.76,254.7,3.9267]
[1737822363508,3.9253,254.8,254.6,2.98]
[1737822363805,3.9253,254.8,254.61,3.47360765]
[1737822364113,0.02476816,254.73,254.68,0.02777767]
[1737822364409,0.02476816,254.73,254.7,3.9267]
[1737822364909,0.02476816,254.73,254.71,3.9265]
[1737822368305,3.9604,254.88,254.68,0.02777767]
[1737822368510,3.9604,254.88,254.66,15.33012461]
[1737822368813,7.8844,254.88,254.73,3.9262]
[1737822369019,15.33012461,254.85,254.67,4.27598446]
[1737822369424,0.02498367,254.79,254.73,0.02902124]
[1737822370316,0.02498367,254.79,254.77,3.9255]
[1737822371320,15.33012461,254.89,254.73,0.02902124]
[1737822371522,15.33012461,254.89,254.81,3.925]
[1737822372019,15.33012461,254.89,254.75,3.9258]
[1737822372219,17.96962461,254.93,254.74,2.96]
[1737822372419,0.02897561,254.86,254.81,0.02484068]
[1737822372622,0.02897561,254.86,254.83,3.9246]
[1737822373122,0.02897561,254.86,254.85,3.9244]
[1737822373512,0.02897561,254.86,254.81,0.02484068]
[1737822374021,0.02897561,254.86,254.81,3.94974068]
[1737822374322,0.02897561,254.86,254.81,0.02484068]
[1737822375021,0.02897561,254.86,254.81,3.94974068]
[1737822375319,0.02897561,254.86,254.81,0.02484068]
[1737822376624,3.95327561,254.86,254.81,0.02484068]
[1737822376821,0.02897561,254.86,254.81,0.02484068]
[1737822377218,3.9247,254.83,254.73,3.9261]
[1737822377423,3.9247,254.83,254.67,4.2277]
[1737822378028,3.9247,254.83,254.67,1.2477]
[1737822378229,3.9247,254.83,254.75,3.9259]
[1737822378521,3.9247,254.83,254.67,4.2277]
[1737822378522,0.02566838,254.78,254.72,0.02652504]
[1737822378727,15.33012461,254.81,254.62,4.2424]
[1737822378924,0.02607281,254.78,254.72,0.02825922]
[1737822379629,3.9258,254.77,254.72,0.02825922]
[1737822379830,0.02607281,254.78,254.72,0.02825922]
[1737822381427,0.02607281,254.78,254.73,3.9261]
[1737822381631,0.02607281,254.78,254.72,0.02825922]
[1737822382524,0.02607281,254.78,254.75,3.9259]
[1737822382731,0.02607281,254.78,254.72,0.02825922]
[1737822383128,0.02607281,254.78,254.77,3.9256]
[1737822384432,0.02607281,254.78,254.72,0.02825922]
[1737822385134,0.02607281,254.78,254.74,3.926]
[1737822386234,0.02607281,254.78,254.72,0.02825922]
[1737822386635,1.2889,254.91,254.72,0.02825922]
[1737822386828,1.2889,254.91,254.75,15.33012461]
[1737822387740,3.924,254.88,254.81,3.925]
[1737822387936,0.02644642,254.86,254.81,3.925]
[1737822389139,0.02644642,254.86,254.8,0.02562398]
[1737822391436,0.02644642,254.86,254.85,3.9244]
[1737822391935,4.642e-05,254.86,254.85,3.9244]
[1737822393033,3.9215,255.04,254.95,3.9227]
[1737822393239,2.6513,255.05,254.88,15.33012461]
[1737822393734,1.3565,255.11,254.85,1.2582]
[1737822393735,1.3565,255.11,255.02,3.9217]
[1737822394138,0.02593131,255.09,255.04,0.02614864]
[1737822396135,0.02593131,255.09,255.04,15.35627325]
[1737822396741,0.02593131,255.09,255.05,3.9213]
[1737822396944,0.02593131,255.09,255.04,15.35627325]
[1737822397237,2.6632,255.18,255.04,15.35627325]
[1737822397437,2.6632,255.18,255.1,3.9205]
[1737822398044,3.9191,255.2,255.09,3.9207]
[1737822398447,0.02551673,255.17,255.12,0.02552513]
[1737822400350,3.9198,255.15,255.12,0.02552513]
[1737822400552,0.02551673,255.17,255.12,0.02552513]
[1737822401049,3.92,255.14,255.12,0.02552513]
[1737822401643,3.9204,255.11,255.02,3.9217]
[1737822401847,15.33012461,255.22,255.0,15.33012461]
[1737822402452,3.9197,255.16,255.04,3.9214]
[1737822402648,15.33012461,255.22,255.07,0.02699177]
[1737822402952,0.02879192,255.13,255.07,0.02699177]
[1737822403753,3.9204,255.12,255.07,0.02699177]
[1737822404453,0.02879192,255.13,255.07,0.02699177]
[1737822404652,0.02879192,255.13,254.92,20.13875957]
[1737822404856,2.5786,255.13,254.92,20.13875957]
[1737822405057,3.9217,255.03,254.94,3.923]
[1737822405356,3.9217,255.03,254.92,4.80863496]
[1737822405558,3.9217,255.03,254.94,3.9229]
[1737822405856,0.02951909,255.01,254.96,0.02852273]
[1737822406057,0.02951909,255.01,254.97,3.9224]
[1737822406252,0.02951909,255.01,254.96,0.02852273]
[1737822407056,0.02951909,255.01,254.99,3.9222]
[1737822408359,0.02951909,255.01,254.96,0.02852273]
[1737822409249,0.02951909,255.01,254.96,3.95112273]
[1737822409454,0.02951909,255.01,254.96,0.02852273]
[1737822412161,0.02951909,255.01,254.96,3.95112273]
[1737822412361,0.02951909,255.01,254.96,0.02852273]
[1737822413259,3.9223,254.99,254.96,0.02852273]
[1737822413657,0.02951909,255.01,254.96,0.02852273]
[1737822413955,0.02951909,255.01,254.84,15.33012461]
[1737822414159,15.33012461,255.06,254.84,15.33012461]
[1737822414361,3.9222,255.0,254.87,3.924]
[1737822414558,3.8411,254.99,254.84,15.33012461]
[1737822415364,0.02896583,254.94,254.89,0.02547762]
[1737822417262,0.02896583,254.94,254.76,15.33012461]
[1737822417467,15.33012461,254.98,254.82,3.9248]
[1737822418063,3.9237,254.9,254.82,3.9248]
[1737822418465,0.02632414,254.89,254.83,0.026947]
[1737822418765,0.02632414,254.89,254.84,3.9245]
[1737822419669,0.02632414,254.89,254.88,3.9239]
[1737822420272,0.02632414,254.89,254.87,3.9241]
[1737822421872,15.33012461,255.1,254.97,3.9225]
[1737822422569,1.3466,255.09,254.88,15.33012461]
[1737822422771,1.3466,255.09,254.92,15.33012461]
[1737822422970,0.02822291,255.01,254.96,0.02483542]
[1737822423872,15.33012461,255.18,254.96,15.35496003]
[1737822424172,4.0501,255.17,255.0,15.33012461]
[1737822424571,3.9197,255.16,255.06,3.9211]
[1737822424771,3.9197,255.16,255.0,15.33012461]
[1737822424970,3.9197,255.16,254.96,15.33012461]
[1737822425168,0.02509159,255.11,255.05,0.02564784]
[1737822426872,0.02509159,255.11,255.07,3.9209]
[1737822427372,0.02509159,255.11,255.05,0.02564784]
[1737822427870,15.33012461,255.26,255.05,0.02564784]
[1737822428064,3.9188,255.22,255.05,2.6135]
[1737822428268,15.33012461,255.22,255.05,1.3046]
[1737822428571,15.33012461,255.22,255.02,2.94]
[1737822429267,0.02536253,255.15,255.09,0.02630989]
[1737822430373,0.02536253,255.15,255.1,3.9204]
[1737822433172,0.02536253,255.15,255.09,0.02630989]
[1737822434270,0.02536253,255.15,255.11,3.9203]
[1737822434670,0.02536253,255.15,255.09,0.02630989]
[1737822435669,3.94516253,255.15,255.09,0.02630989]
[1737822437075,3.9201,255.13,255.09,0.02630989]
[1737822437373,0.02536253,255.15,255.09,0.02630989]
[1737822439172,3.94526253,255.15,255.09,0.02630989]
[1737822439368,0.02536253,255.15,255.09,0.02630989]
[1737822440975,3.9201,255.13,255.09,0.02630989]
[1737822441168,0.02536253,255.15,255.09,0.02630989]
[1737822441673,3.9204,255.11,255.09,0.02630989]
[1737822442967,0.02536253,255.15,255.09,0.02630989]
[1737822443175,3.9202,255.13,255.09,0.02630989]
[1737822443366,0.02536253,255.15,255.09,0.02630989]
[1737822443572,0.02536253,255.15,255.09,3.94690989]
[1737822443766,0.02536253,255.15,255.09,0.02630989]
[1737822444171,0.02536253,255.15,255.14,3.9199]
[1737822445070,1.2375,255.24,255.11,15.33012461]
[1737822445272,2.6917,255.28,255.11,15.33012461]
[1737822445476,3.9176,255.3,255.11,15.33012461]
[1737822445676,15.33012461,255.33,255.2,3.919]
[1737822446274,0.02570569,255.29,255.11,15.33012461]
[1737822446569,15.33012461,255.33,255.21,3.9189]
[1737822446769,0.02981838,255.23,255.21,3.9189]
[1737822446967,3.9173,255.32,255.17,0.02949392]
[1737822447173,2.6917,255.38,255.22,0.0296445]
[1737822447378,3.9165,255.37,255.19,15.33012461]
[1737822447573,15.33012461,255.41,255.23,15.33012461]
[1737822447771,15.33012461,255.45,255.23,15.33012461]
[1737822447975,15.33012461,255.45,255.24,2.604]
[1737822448373,15.33012461,255.45,255.32,0.02983379]
[1737822448374,0.02617838,255.37,255.32,0.02983379]
[1737822449780,3.9151,255.46,255.32,0.02983379]
[1737822449973,1.3058,255.5,255.31,15.33012461]
[1737822450670,15.33012461,255.48,255.27,15.33012461]
[1737822450872,15.33012461,255.48,255.3,3.9174]
[1737822451068,15.33012461,255.48,255.35,0.02530578]
[1737822451069,0.02756496,255.4,255.35,0.02530578]
[1737822451473,3.9162,255.39,255.35,0.02530578]
[1737822451677,0.02756496,255.4,255.35,0.02530578]
[1737822451877,0.02756496,255.4,255.35,3.94200578]
[1737822452077,0.02756496,255.4,255.35,0.02530578]
[1737822454282,3.9163,255.38,255.35,0.02530578]
[1737822456779,3.94366496,255.4,255.35,0.02530578]
[1737822456975,0.02756496,255.4,255.35,0.02530578]
[1737822457380,0.02756496,255.4,255.36,3.9165]
[1737822457884,0.02756496,255.4,255.38,3.9162]
[1737822459679,0.02756496,255.4,255.35,0.02530578]
[1737822460477,0.02756496,255.4,255.38,3.9162]
[1737822460878,6.496e-05,255.4,255.38,3.9162]
[1737822461181,1.3302,255.52,255.39,15.33012461]
[1737822461778,2.6619,255.6,255.39,15.33012461]
[1737822462085,1.263,255.64,255.47,15.33012461]
[1737822462285,3.9125,255.63,255.53,3.9139]
[1737822462479,0.03015431,255.58,255.53,3.9139]
[1737822462677,0.03015431,255.58,255.55,0.02643829]
[1737822463884,2.6962,255.67,255.55,0.02643829]
[1737822464184,1.263,255.78,255.59,15.33012461]
[1737822464585,3.9107,255.75,255.63,3.9123]
[1737822465088,0.0250749,255.72,255.66,0.02546189]
[1737822466884,3.9115,255.7,255.66,0.02546189]
[1737822467085,15.33012461,255.71,255.53,4.8018547]
[1737822467288,1.3019,255.69,255.53,4.8018547]
[1737822467989,3.9123,255.64,255.5,18.36982461]
[1737822468187,1.3019,255.69,255.5,18.23012461]
[1737822468486,0.02567882,255.6,255.54,0.02632827]
[1737822470490,0.02567882,255.6,255.54,15.35645288]
[1737822471694,1.3019,255.69,255.58,15.33012461]
[1737822471990,1.263,255.78,255.58,15.33012461]
[1737822472189,3.9114,255.7,255.59,3.913]
[1737822472390,15.33012461,255.75,255.54,15.33012461]
[1737822472891,0.02675793,255.67,255.62,0.02635679]
[1737822475186,3.9123,255.64,255.62,0.02635679]
[1737822475585,0.02675793,255.67,255.5,18.23012461]
[1737822475791,1.2296,255.66,255.5,18.23012461]
[1737822475983,1.3133,255.65,255.5,18.23012461]
[1737822476183,1.3133,255.65,255.52,3.914]
[1737822476388,1.3133,255.65,255.46,15.33012461]
[1737822476693,3.9137,255.55,255.53,0.02922242]
[1737822476893,0.02744108,255.58,255.45,3.915]
[1737822477089,15.33012461,255.63,255.42,15.33012461]
[1737822477393,15.33012461,255.63,255.4,4.8018547]
[1737822477394,15.33012461,255.59,255.4,4.8018547]
[1737822477594,15.33012461,255.59,255.37,7.7218547]
[1737822478188,0.02523965,255.51,255.45,0.0287651]
[1737822479494,1.26123965,255.51,255.45,0.0287651]
[1737822479796,3.9146,255.49,255.45,0.0287651]
[1737822479993,1.26123965,255.51,255.45,0.0287651]
[1737822480294,5.17563965,255.51,255.45,0.0287651]
[1737822480492,1.26123965,255.51,255.45,0.0287651]
[1737822482099,5.17553965,255.51,255.45,0.0287651]
[1737822482692,3.93953965,255.51,255.45,0.0287651]
[1737822484194,206.76,255.64,255.45,0.0287651]
[1737822484195,23.54,255.92,255.5,15.33012461]
[1737822484492,217.0,256.02,255.71,15.33012461]
[1737822484493,1.2901,255.77,255.71,15.33012461]
[1737822484692,15.33012461,256.01,255.71,15.33012461]
[1737822484890,2.96,256.03,255.71,15.33012461]
[1737822485092,0.78121948,256.01,255.71,15.33012461]
[1737822485296,11.78646569,255.9,255.71,15.33012461]
[1737822485495,11.76,255.9,255.71,15.33012461]
[1737822485695,3.9099,255.8,255.71,15.33012461]
[1737822485898,11.76,255.9,255.67,15.33012461]
[1737822486098,11.76,255.86,255.67,15.33012461]
[1737822486292,2.98,255.9,255.71,15.33012461]
[1737822486495,0.0277728,255.79,255.74,0.02490156]
[1737822486693,18.31012461,255.95,255.71,15.33012461]
[1737822486902,0.02705379,255.79,255.74,0.02971448]
[1737822487102,18.31012461,255.95,255.71,15.33012461]
[1737822487302,0.02497208,255.79,255.74,0.02742889]
[1737822487602,0.02554854,255.79,255.74,0.02799422]
[1737822488097,11.76,255.94,255.74,0.02799422]
[1737822488301,195.0,256.16,255.84,15.33012461]
[1737822488497,1.3601,255.99,255.84,15.33012461]
[1737822489100,3.9073,255.97,255.84,15.33012461]
[1737822489302,0.02626843,255.94,255.89,0.02650202]
[1737822489502,0.02626843,255.94,255.79,15.33012461]
[1737822489798,1.3601,255.99,255.79,15.33012461]
[1737822490007,1.2292,255.98,255.79,15.33012461]
[1737822490201,1.2292,255.98,255.83,15.33012461]
[1737822490702,0.02760624,255.93,255.88,0.0298204]
[1737822490908,0.02760624,255.93,255.79,15.33012461]
[1737822491106,1.2292,255.98,255.79,15.33012461]
[1737822491604,3.9083,255.91,255.79,15.33012461]
[1737822491807,3.9083,255.91,255.83,15.33012461]
[1737822492003,0.02464948,255.88,255.83,15.33012461]
[1737822492804,0.02464948,255.88,255.82,0.02641204]
[1737822492998,3.909,255.86,255.82,0.02641204]
[1737822493600,0.02464948,255.88,255.82,0.02641204]
[1737822493805,3.9093,255.84,255.82,0.02641204]
[1737822494002,0.02464948,255.88,255.75,15.33012461]
[1737822494207,11.76,255.95,255.75,15.33012461]
[1737822495008,3.9103,255.78,255.75,15.33012461]
[1737822495203,0.02565684,255.88,255.82,4.572e-05]
[1737822495506,11.76,255.93,255.71,15.33012461]
[1737822495707,3.9106,255.75,255.71,15.33012461]
[1737822495911,11.76,255.91,255.67,15.33012461]
[1737822496405,0.02787092,255.82,255.76,0.02907786]
[1737822496811,3.9102,255.78,255.76,0.02907786]
[1737822497002,0.02787092,255.82,255.76,0.02907786]
[1737822499308,3.9102,255.78,255.76,0.02907786]
[1737822499611,3.9878,255.81,255.67,15.33012461]
[1737822499813,3.9116,255.69,255.67,15.33012461]
[1737822500309,3.9113,255.71,255.58,15.33012461]
[1737822500512,0.02671769,255.67,255.62,0.02668838]
[1737822501613,0.02671769,255.67,255.62,19.26931299]
[1737822501815,0.02671769,255.67,255.62,15.35681299]
[1737822503606,3.9878,255.81,255.62,15.35681299]
[1737822503813,3.9105,255.76,255.66,15.33012461]
[1737822504010,3.9878,255.81,255.66,15.33012461]
[1737822504316,3.9105,255.76,255.62,15.33012461]
[1737822504516,15.33012461,255.8,255.62,15.33012461]
[1737822504812,0.02882704,255.74,255.68,0.02875575]
[1737822506019,3.9111,255.72,255.68,0.02875575]
[1737822506211,0.02882704,255.74,255.68,0.02875575]
[1737822507116,0.02882704,255.74,255.69,3.9115]
[1737822508219,0.02882704,255.74,255.68,3.94045575]
[1737822508417,0.02882704,255.74,255.68,0.02875575]
[1737822508718,0.02882704,255.74,255.69,3.9114]
[1737822508918,0.02882704,255.74,255.68,0.02875575]
[1737822509915,0.02882704,255.74,255.72,3.911]
[1737822510912,0.02882704,255.74,255.7,3.9114]
[1737822511114,0.02882704,255.74,255.68,0.02875575]
[1737822513922,0.02882704,255.74,255.68,3.94025575]
[1737822515316,3.9111,255.72,255.68,0.02875575]
[1737822515620,0.02882704,255.74,255.68,0.02875575]
[1737822517022,3.9111,255.72,255.68,0.02875575]
[1737822517223,0.02882704,255.74,255.68,0.02875575]
[1737822519222,3.9114,255.7,255.68,0.02875575]
[1737822521223,0.02882704,255.74,255.68,0.02875575]
[1737822521423,3.9115,255.69,255.68,0.02875575]
[1737822521622,0.02882704,255.74,255.68,0.02875575]
[1737822522425,3.9112,255.72,255.68,0.02875575]
[1737822522821,0.02882704,255.74,255.68,0.02875575]
[1737822523018,3.93972704,255.74,255.68,0.02875575]
[1737822523616,0.02882704,255.74,255.68,0.02875575]
[1737822524522,3.9109,255.73,255.68,0.02875575]
[1737822524724,0.02882704,255.74,255.68,0.02875575]
[1737822525326,3.911,255.73,255.68,0.02875575]
[1737822525723,0.02882704,255.74,255.68,0.02875575]
[1737822527027,3.9115,255.69,255.68,0.02875575]
[1737822529230,0.02882704,255.74,255.68,0.02875575]
[1737822530130,0.02882704,255.74,255.7,9.54247323]
[1737822531625,0.02882704,255.74,255.68,0.02875575]
[1737822531831,0.02882704,255.74,255.7,3.9113]
[1737822532131,0.02882704,255.74,255.68,0.02875575]
[1737822533725,0.02882704,255.74,255.69,3.9115]
[1737822535338,0.02882704,255.74,255.68,0.02875575]
[1737822535734,3.93962704,255.74,255.68,0.02875575]
[1737822536434,3.911,255.73,255.68,0.02875575]
[1737822536837,0.02882704,255.74,255.68,0.02875575]
[1737822537333,0.02882704,255.74,255.68,3.94045575]
[1737822538039,3.93962704,255.74,255.68,3.94045575]
[1737822538332,0.02882704,255.74,255.68,0.02875575]
[1737822538836,3.93962704,255.74,255.68,0.02875575]
[1737822539038,3.93962704,255.74,255.68,3.94035575]
[1737822539438,0.02882704,255.74,255.68,3.94035575]
[1737822540634,3.9111,255.72,255.68,0.02875575]
[1737822541139,0.02882704,255.74,255.68,0.02875575]
[1737822541838,3.93972704,255.74,255.68,0.02875575]
[1737822542035,0.02882704,255.74,255.68,0.02875575]
[1737822543040,3.911,255.73,255.68,0.02875575]
[1737822543340,0.02882704,255.74,255.68,0.02875575]
[1737822544040,0.02882704,255.74,255.69,3.9115]
[1737822544238,0.02882704,255.74,255.68,0.02875575]
[1737822544741,0.02882704,255.74,255.7,3.9113]
[1737822545239,0.02882704,255.74,255.68,0.02875575]
[1737822545540,0.02882704,255.74,255.7,3.9113]
[1737822546836,3.93952704,255.74,255.68,3.94035575]
[1737822547143,0.02882704,255.74,255.68,0.02875575]
[1737822547940,3.9115,255.69,255.68,0.02875575]
[1737822550841,3.9113,255.71,255.68,0.02875575]
[1737822551742,0.02882704,255.74,255.68,0.02875575]
[1737822551943,0.02882704,255.74,255.7,3.9113]
[1737822552141,0.02882704,255.74,255.68,9.56988747]
[1737822553042,0.02882704,255.74,255.7,3.9113]
[1737822554145,3.911,255.73,255.68,13.48148747]
[1737822554347,0.02882704,255.74,255.68,0.02875575]